bitfinex-derivatives/quotes_SOLF0:USTF0_20250719
["timestamp","ask_amount","ask_price","bid_price","bid_amount"]
[1752912786580,2.2265375,176.3,176.29,3.32]
[1752912786973,2.2265375,176.32,176.31,3.32]
[1752912788079,2.2265375,176.32,176.31,8.9882]
[1752912788279,2.2265375,176.34,176.31,3.32]
[1752912788675,3.04,176.3,176.28,5.6691]
[1752912788881,2.2265375,176.32,176.24,6.88384649]
[1752912789082,3.04,176.31,176.25,3.32]
[1752912789379,3.04,176.31,176.29,5.6686]
[1752912789677,2.2265375,176.32,176.25,3.32]
[1752912789885,5.2665375,176.32,176.25,3.32]
[1752912790184,5.2665375,176.32,176.31,3.32]
[1752912790484,2.2265375,176.32,176.31,3.32]
[1752912790684,5.2665375,176.32,176.31,3.32]
[1752912791386,5.2665375,176.34,176.32,3.32]
[1752912791586,2.2265375,176.34,176.32,3.32]
[1752912791886,5.2665375,176.34,176.33,3.32]
[1752912793081,3.04,176.34,176.33,3.32]
[1752912793281,5.2665375,176.34,176.33,8.9876]
[1752912793680,2.2265375,176.34,176.33,8.9876]
[1752912795186,5.2665375,176.34,176.33,8.9876]
[1752912795381,2.2265375,176.34,176.33,8.9876]
[1752912796083,5.2665375,176.34,176.33,8.9876]
[1752912796987,3.04,176.34,176.33,8.9876]
[1752912798086,2.2265375,176.35,176.34,8.9872]
[1752912798486,5.2665375,176.35,176.34,8.9872]
[1752912798790,5.2665375,176.35,176.34,3.32]
[1752912799289,2.2265375,176.35,176.33,8.9875]
[1752912799493,3.04,176.34,176.27,4.65730899]
[1752912799789,3.04,176.31,176.28,3.32]
[1752912800785,2.2265375,176.32,176.31,5.6682]
[1752912800990,5.2665375,176.32,176.31,8.9882]
[1752912801791,3.04,176.34,176.32,5.6678]
[1752912801988,5.2665375,176.33,176.32,5.6678]
[1752912802387,2.2265375,176.33,176.32,8.9878]
[1752912802991,5.2665375,176.33,176.32,8.9878]
[1752912803392,5.2665375,176.33,176.32,3.32]
[1752912804389,2.2265375,176.33,176.32,8.9879]
[1752912804594,2.2265375,176.35,176.32,3.32]
[1752912804792,3.04,176.34,176.32,3.32]
[1752912804990,2.2265375,176.35,176.33,5.6676]
[1752912805293,2.2265375,176.35,176.33,8.9876]
[1752912805798,3.04,176.34,176.33,8.9876]
[1752912806792,5.2665375,176.34,176.33,8.9876]
[1752912808499,3.04,176.34,176.33,8.9876]
[1752912808991,6.15599812,176.42,176.35,3.32]
[1752912809291,3.04,176.41,176.35,3.32]
[1752912809497,2.2265375,176.42,176.35,3.32]
[1752912809693,3.04,176.43,176.35,3.32]
[1752912809893,3.04,176.43,176.36,3.32]
[1752912810095,5.2665375,176.43,176.36,3.32]
[1752912810291,3.04,176.42,176.36,3.32]
[1752912810893,3.04,176.4,176.36,3.32]
[1752912811194,3.04,176.39,176.38,8.9857]
[1752912811992,2.2265375,176.41,176.39,5.6654]
[1752912812295,5.2665375,176.43,176.35,2.2265375]
[1752912812600,5.2665375,176.43,176.42,5.6646]
[1752912812796,5.2665375,176.43,176.42,8.9846]
[1752912813093,5.2665375,176.43,176.42,3.32]
[1752912814498,5.2665375,176.43,176.41,3.32]
[1752912814499,3.04,176.42,176.41,3.32]
[1752912815699,3.28,176.44,176.41,3.32]
[1752912816197,3.28,176.44,176.43,3.2]
[1752912816399,3.28,176.44,176.35,3.2]
[1752912816601,2.2265375,176.36,176.35,5.6669]
[1752912816797,5.5065375,176.36,176.28,6.88384649]
[1752912817004,3.28,176.35,176.34,3.2]
[1752912817394,3.28,176.35,176.32,3.2]
[1752912817595,3.28,176.34,176.33,3.2]
[1752912818202,3.28,176.34,176.33,8.8675]
[1752912818402,3.28,176.34,176.33,3.2]
[1752912820204,3.28,176.34,176.3,3.2]
[1752912820397,5.5065375,176.31,176.3,3.2]
[1752912821103,3.28,176.31,176.3,3.2]
[1752912821307,2.2265375,176.32,176.3,3.2]
[1752912821806,5.5065375,176.32,176.3,3.2]
[1752912822007,5.5065375,176.32,176.31,3.2]
[1752912822312,3.28,176.31,176.25,4.65730899]
[1752912822511,3.28,176.31,176.25,3.2]
[1752912822714,2.2265375,176.28,176.25,3.2]
[1752912823104,3.28,176.29,176.28,8.8691]
[1752912823711,5.5065375,176.31,176.3,3.2]
[1752912824307,3.28,176.3,176.29,3.2]
[1752912824507,2.2265375,176.31,176.29,3.2]
[1752912824713,5.5065375,176.31,176.29,3.2]
[1752912824904,5.5065375,176.31,176.3,3.2]
[1752912825114,2.2265375,176.31,176.3,3.2]
[1752912825407,2.2265375,176.31,176.3,8.8685]
[1752912827014,3.28,176.32,176.31,8.8681]
[1752912827313,5.5065375,176.32,176.31,8.8681]
[1752912828012,2.2265375,176.32,176.31,8.8681]
[1752912828708,5.5065375,176.34,176.31,3.2]
[1752912829214,2.2265375,176.34,176.31,3.2]
[1752912829415,2.2265375,176.34,176.33,5.6675]
[1752912829610,2.2265375,176.34,176.33,8.8675]
[1752912830717,3.28,176.35,176.34,8.8672]
[1752912830910,5.5065375,176.36,176.35,3.2]
[1752912831221,3.28,176.36,176.35,3.2]
[1752912832017,3.28,176.36,176.35,8.8669]
[1752912832715,5.5065375,176.38,176.36,5.6665]
[1752912832917,3.28,176.37,176.36,5.6665]
[1752912833316,3.28,176.37,176.36,8.8665]
[1752912833513,3.28,176.39,176.38,3.2]
[1752912834619,3.28,176.39,176.38,8.8659]
[1752912835919,3.28,176.41,176.39,8.8656]
[1752912836128,3.28,176.41,176.4,3.2]
[1752912836418,2.2265375,176.44,176.4,8.8653]
[1752912836618,3.28,176.42,176.41,3.2]
[1752912837219,3.28,176.43,176.41,3.2]
[1752912837723,3.28,176.43,176.42,3.2]
[1752912837927,3.28,176.43,176.36,3.2]
[1752912838121,2.2265375,176.4,176.37,5.666]
[1752912838323,3.28,176.38,176.37,8.866]
[1752912838623,3.28,176.38,176.37,5.666]
[1752912838929,3.28,176.38,176.36,8.8665]
[1752912838930,3.28,176.37,176.36,8.8665]
[1752912839323,3.28,176.37,176.31,3.2]
[1752912839626,3.28,176.34,176.31,3.2]
[1752912840126,3.28,176.35,176.34,8.8669]
[1752912841820,3.28,176.44,176.32,3.2]
[1752912842025,110.62,176.46,176.32,3.2]
[1752912842026,2.2265375,176.4,176.32,3.2]
[1752912842227,5.5065375,176.4,176.32,3.2]
[1752912842426,3.28,176.4,176.38,5.6656]
[1752912842627,3.28,176.4,176.39,3.2]
[1752912843427,3.28,176.45,176.42,5.6644]
[1752912843736,387.15599812,176.49,176.3,4.75545335]
[1752912843737,3.28,176.44,176.43,3.2]
[1752912844424,3.28,176.46,176.43,3.2]
[1752912844920,3.28,176.46,176.45,3.2]
[1752912845521,3.28,176.46,176.38,3.06]
[1752912845722,2.2265375,176.42,176.31,4.75545335]
[1752912845927,3.05,176.41,176.35,3.06]
[1752912846529,3.05,176.39,176.35,3.06]
[1752912846728,3.05,176.38,176.35,3.06]
[1752912847733,6.15599812,176.48,176.33,3.06]
[1752912847938,2.2265375,176.4,176.34,3.06]
[1752912848238,5.2765375,176.35,176.34,3.06]
[1752912849140,3.05,176.36,176.35,3.06]
[1752912850337,5.2765375,176.37,176.36,3.06]
[1752912850740,3.05,176.36,176.35,3.06]
[1752912850943,3.05,176.37,176.36,3.06]
[1752912851138,3.05,176.37,176.34,3.06]
[1752912851332,3.05,176.39,176.33,8.7272]
[1752912851539,3.05,176.35,176.34,3.06]
[1752912852039,3.05,176.35,176.32,3.06]
[1752912852233,2.2265375,176.4,176.31,5.6679]
[1752912852234,3.05,176.33,176.31,5.6679]
[1752912852438,3.05,176.32,176.31,8.7279]
[1752912852834,3.05,176.33,176.32,8.7278]
[1752912853635,3.05,176.35,176.32,8.7278]
[1752912853933,5.6659,176.38,176.33,3.06]
[1752912853934,3.05,176.34,176.33,3.06]
[1752912854138,5.2765375,176.36,176.33,3.06]
[1752912854638,3.05,176.36,176.33,3.06]
[1752912854842,5.2765375,176.36,176.33,3.06]
[1752912855043,3.05,176.37,176.3,3.06]
[1752912855240,2.2265375,176.36,176.3,3.06]
[1752912855441,5.2765375,176.36,176.3,3.06]
[1752912855631,3.05,176.34,176.33,8.7274]
[1752912855833,3.05,176.34,176.31,3.06]
[1752912856037,2.2265375,176.34,176.29,3.06]
[1752912856232,3.05,176.33,176.32,3.06]
[1752912856436,3.05,176.32,176.31,8.728]
[1752912857041,3.05,176.32,176.31,3.06]
[1752912857239,3.05,176.32,176.26,3.06]
[1752912857437,3.05,176.31,176.26,3.06]
[1752912857746,3.05,176.29,176.27,3.06]
[1752912857939,3.05,176.29,176.23,381.02]
[1752912857940,3.05,176.29,176.28,3.06]
[1752912859242,3.05,176.29,176.28,5.6691]
[1752912859634,5.2765375,176.3,176.29,3.06]
[1752912860642,5.6673,176.34,176.29,8.7288]
[1752912860843,5.2765375,176.32,176.31,3.06]
[1752912861046,3.05,176.32,176.31,3.06]
[1752912861346,2.2265375,176.33,176.31,8.7282]
[1752912861545,5.2765375,176.33,176.32,3.06]
[1752912862838,5.2765375,176.33,176.31,5.6682]
[1752912863042,3.05,176.32,176.31,8.7282]
[1752912864146,3.05,176.33,176.25,2.2265375]
[1752912864348,5.2765375,176.35,176.27,2.2265375]
[1752912864543,5.2765375,176.35,176.28,3.06]
[1752912864544,3.05,176.34,176.28,3.06]
[1752912865042,5.2765375,176.34,176.31,8.7281]
[1752912865248,2.2265375,176.32,176.29,3.06]
[1752912865445,3.05,176.31,176.29,3.06]
[1752912865648,2.2265375,176.32,176.3,5.6685]
[1752912866049,2.2265375,176.32,176.31,5.6682]
[1752912866244,5.2765375,176.32,176.31,5.6682]
[1752912867244,5.2765375,176.32,176.29,3.06]
[1752912867449,3.05,176.31,176.27,3.06]
[1752912867751,132.80995524,176.37,176.27,3.06]
[1752912867752,3.05,176.28,176.27,3.06]
[1752912867950,3.05,176.28,176.27,8.7292]
[1752912870852,3.05,176.28,176.27,3.06]
[1752912871654,3.05,176.28,176.27,8.7295]
[1752912872054,3.05,176.28,176.27,3.06]
[1752912872955,3.05,176.28,176.22,3.06]
[1752912875658,5.2765375,176.28,176.22,3.06]
[1752912875854,2.2265375,176.28,176.22,3.06]
[1752912876059,3.15,176.26,176.22,3.06]
[1752912876258,3.15,176.26,176.25,3.06]
[1752912876759,3.15,176.26,176.25,8.7301]
[1752912877658,3.15,176.26,176.23,8.7304]
[1752912877859,3.15,176.27,176.25,3.06]
[1752912878059,3.15,176.27,176.21,3.06]
[1752912878263,3.15,176.24,176.23,3.06]
[1752912878756,3.15,176.24,176.23,8.7307]
[1752912879151,3.15,176.24,176.19,3.06]
[1752912879360,3.15,176.24,176.22,5.6708]
[1752912879660,3.15,176.25,176.24,3.06]
[1752912880560,3.15,176.25,176.24,8.7304]
[1752912880760,3.15,176.25,176.24,3.06]
[1752912881970,3.15,176.24,176.23,8.7305]
[1752912884164,5.3765375,176.26,176.23,3.06]
[1752912884565,5.3765375,176.26,176.24,5.6702]
[1752912884761,5.3765375,176.26,176.25,3.06]
[1752912884962,3.15,176.25,176.24,8.7302]
[1752912886166,3.15,176.25,176.24,3.06]
[1752912886364,3.15,176.25,176.23,8.7306]
[1752912887764,2.2265375,176.26,176.23,8.7306]
[1752912887958,3.15,176.24,176.23,8.7306]
[1752912892069,3.15,176.24,176.23,3.06]
[1752912892765,3.15,176.24,176.22,5.671]
[1752912893166,3.15,176.24,176.23,5.6707]
[1752912893468,5.3765375,176.25,176.24,3.06]
[1752912893866,3.15,176.25,176.24,8.7304]
[1752912894069,5.3765375,176.26,176.25,3.06]
[1752912894274,3.15,176.25,176.18,3.06]
[1752912894467,3.15,176.25,176.23,5.6707]
[1752912894664,3.15,176.25,176.24,3.06]
[1752912896474,3.15,176.25,176.24,8.7304]
[1752912898671,6.15599812,176.35,176.25,3.06]
[1752912898873,5.3765375,176.3,176.25,3.06]
[1752912899077,3.15,176.29,176.25,3.06]
[1752912899476,2.2265375,176.3,176.25,3.06]
[1752912899680,3.15,176.29,176.25,3.06]
[1752912900384,3.15,176.28,176.27,8.7292]
[1752912902186,2.2265375,176.3,176.27,8.7292]
[1752912902381,3.15,176.29,176.28,3.06]
[1752912902885,2.2265375,176.3,176.29,3.06]
[1752912903289,5.3765375,176.3,176.29,3.06]
[1752912904487,6.15599812,176.37,176.23,2.2265375]
[1752912904681,2.2265375,176.34,176.26,2.2265375]
[1752912904880,3.15,176.33,176.27,3.06]
[1752912905589,2.2265375,176.33,176.31,8.8281]
[1752912905789,3.05,176.32,176.31,3.16]
[1752912907987,5.2765375,176.34,176.31,3.16]
[1752912908389,3.05,176.39,176.3,2.2265375]
[1752912908593,2.2265375,176.38,176.3,2.2265375]
[1752912908797,3.05,176.37,176.31,3.16]
[1752912909289,387.37599812,176.43,176.31,3.16]
[1752912909494,5.2765375,176.37,176.31,3.16]
[1752912909793,3.05,176.35,176.34,3.16]
[1752912910094,3.05,176.35,176.34,8.8272]
[1752912910686,3.05,176.36,176.35,5.6668]
[1752912910994,5.2765375,176.37,176.31,2.2265375]
[1752912911393,5.2765375,176.37,176.32,3.16]
[1752912911594,3.05,176.39,176.32,3.16]
[1752912911996,3.05,176.39,176.38,3.16]
[1752912913092,3.05,176.39,176.35,5.6666]
[1752912913297,2.26499979,176.4,176.03,31.04872663]
[1752912913298,2.2265375,176.36,176.29,2.2265375]
[1752912913498,3.05,176.35,176.3,3.16]
[1752912913894,2.2265375,176.38,176.31,2.2265375]
[1752912914098,2.2265375,176.38,176.32,3.16]
[1752912914292,3.05,176.39,176.32,3.16]
[1752912914799,0.03578514,176.37,176.33,2.2265375]
[1752912914999,0.03578514,176.37,176.36,8.8266]
[1752912915794,8.514e-05,176.37,176.36,8.8266]
[1752912918193,8.514e-05,176.37,176.35,3.19916788]
[1752912918399,3.05,176.36,176.35,0.03916788]
[1752912919302,3.05,176.36,176.35,3.19916788]
[1752912919905,8.514e-05,176.37,176.36,3.16]
[1752912920403,8.514e-05,176.37,176.36,8.8266]
[1752912923603,3.05008514,176.37,176.36,8.8266]
[1752912923904,8.514e-05,176.37,176.36,5.6666]
[1752912924396,2.22662264,176.37,176.35,8.86596788]
[1752912924598,3.05,176.36,176.35,0.03916788]
[1752912924798,3.05,176.36,176.31,3.16]
[1752912924998,3.05,176.32,176.31,3.16]
[1752912925194,3.05,176.32,176.25,2.2265375]
[1752912925195,3.05,176.32,176.29,3.16]
[1752912925398,3.05,176.34,176.27,2.2265375]
[1752912925600,2.2265375,176.35,176.28,3.16]
[1752912925904,5.2765375,176.35,176.28,3.16]
[1752912926092,0.03938876,176.33,176.28,3.16]
[1752912926297,3.05,176.32,176.28,3.16]
[1752912926493,3.05,176.31,176.28,3.16]
[1752912926695,3.05,176.31,176.28,5.6689]
[1752912926895,3.05,176.31,176.25,3.16]
[1752912927607,3.05,176.29,176.28,8.8289]
[1752912929108,5.2765375,176.29,176.24,3.16]
[1752912929306,3.05,176.28,176.25,3.16]
[1752912930008,3.05,176.28,176.26,5.6698]
[1752912930310,3.05,176.26,176.25,3.16]
[1752912930500,2.2265375,176.27,176.25,5.67]
[1752912931111,3.05,176.26,176.25,5.67]
[1752912931514,3.05,176.26,176.25,8.83]
[1752912933616,3.05,176.26,176.25,5.67]
[1752912935505,5.4065375,176.28,176.27,8.9595]
[1752912935710,3.18,176.27,176.21,3.29]
[1752912936012,3.18,176.27,176.26,5.6697]
[1752912936717,3.18,176.27,176.26,8.9597]
[1752912941122,2.26351221,176.28,176.27,8.9595]
[1752912941123,0.03697471,176.28,176.27,8.9595]
[1752912942912,3.18,176.27,176.26,5.6697]
[1752912943117,3.18,176.27,176.24,3.29]
[1752912943411,17.01,176.38,176.26,3.29]
[1752912943616,0.03692007,176.27,176.26,3.29]
[1752912944016,2.2265375,176.31,176.22,2.2265375]
[1752912944316,3.18,176.29,176.28,3.29]
[1752912945812,0.03771585,176.3,176.22,2.2265375]
[1752912946117,0.03771585,176.3,176.25,3.29]
[1752912946412,5.4065375,176.31,176.3,5.6685]
[1752912946618,5.4065375,176.31,176.3,8.9585]
[1752912947712,3.21993776,176.32,176.31,8.9581]
[1752912948114,3.18,176.32,176.31,8.9581]
[1752912948623,3.18,176.32,176.31,3.29]
[1752912950217,3.18,176.32,176.31,8.9581]
[1752912951719,2.26759503,176.33,176.31,8.9581]
[1752912951917,3.18,176.32,176.31,8.9581]
[1752912953420,3.18,176.32,176.3,0.036725]
[1752912953622,5.4065375,176.31,176.3,0.036725]
[1752912956016,3.18,176.25,176.24,3.29]
[1752912956824,3.18,176.25,176.24,8.9602]
[1752912957022,0.0431899,176.26,176.24,8.9602]
[1752912957327,3.2231899,176.26,176.25,3.29]
[1752912958728,0.0431899,176.26,176.25,8.9601]
[1752912960233,3.2231899,176.26,176.25,8.9601]
[1752912960828,3.2231899,176.26,176.25,3.29]
[1752912961221,3.2231899,176.26,176.22,3.29]
[1752912961423,3.2231899,176.26,176.15,189.73829063]
[1752912961424,2.2265375,176.23,176.21,3.29]
[1752912961618,3.18,176.22,176.15,189.73829063]
[1752912961824,5.4065375,176.19,176.16,3.29]
[1752912962231,5.4065375,176.19,176.18,8.9623]
[1752912963530,3.18,176.19,176.18,8.9623]
[1752912964432,3.18,176.19,176.18,3.29]
[1752912965231,3.18,176.19,176.18,8.9623]
[1752912965432,3.33,176.19,176.18,8.8823]
[1752912967629,3.3698401,176.2,176.19,8.882]
[1752912968026,3.33,176.16,176.06,6.20974532]
[1752912968233,3.33,176.13,176.09,3.21]
[1752912968736,3.3718194,176.13,176.09,3.21]
[1752912968935,3.33,176.12,176.09,3.21]
[1752912969134,3.33,176.11,176.1,3.21]
[1752912969437,3.33,176.1,176.09,3.21]
[1752912970030,3.33,176.09,176.01,5.4365375]
[1752912970237,3.33,176.09,176.02,3.21]
[1752912970427,3.33,176.07,176.06,8.886]
[1752912970630,3.33,176.07,175.99,381.3]
[1752912970631,3.33,176.07,176.0,3.21]
[1752912970829,3.33,176.04,176.0,3.21]
[1752912971032,2.2265375,176.04,176.0,3.21]
[1752912971240,0.03857526,176.07,176.0,5.4365375]
[1752912971536,7.526e-05,176.07,176.06,8.8862]
[1752912971935,5.5565375,176.11,176.06,3.21]
[1752912972129,3.33,176.1,176.0,3.21]
[1752912972330,381.34,176.17,176.01,5.4365375]
[1752912972331,3.33,176.08,176.01,5.4365375]
[1752912972530,3.33,176.06,176.02,3.21]
[1752912972929,3.33,176.06,176.05,5.6765]
[1752912973131,2.2265375,176.07,175.99,2.2265375]
[1752912973333,5.5565375,176.07,176.06,3.21]
[1752912973532,5.5565375,176.07,176.06,8.8862]
[1752912973837,3.33,176.06,175.97,5.4365375]
[1752912974032,2.2265375,176.05,175.98,3.21]
[1752912974738,2.2265375,176.05,176.04,5.6769]
[1752912974937,5.5565375,176.05,176.04,5.6769]
[1752912976038,2.2265375,176.05,176.04,8.8869]
[1752912976642,5.5565375,176.05,176.04,3.21]
[1752912977141,2.2265375,176.05,176.04,3.21]
[1752912977344,2.2265375,176.05,176.04,8.8869]
[1752912977641,2.2265375,176.13,176.04,3.21]
[1752912977943,2.2265375,176.09,176.04,3.21]
[1752912978143,5.5565375,176.1,176.04,3.21]
[1752912978535,2.2265375,176.1,176.04,3.21]
[1752912978745,3.33,176.08,176.04,3.21]
[1752912978940,3.33,176.08,176.06,5.676]
[1752912979143,3.33,176.07,176.06,8.886]
[1752912979352,3.33,176.07,175.97,2.2265375]
[1752912979642,3.33,176.05,176.03,3.21]
[1752912980047,3.33,176.05,176.04,8.8869]
[1752912981050,3.33,176.05,175.93,3.21]
[1752912981247,3.33,176.05,175.99,3.21]
[1752912981651,3.33,176.05,175.98,3.21]
[1752912982747,3.33,176.04,176.03,3.21]
[1752912982949,3.33,176.06,176.03,3.21]
[1752912983150,2.2265375,176.08,176.03,3.21]
[1752912983353,3.33,176.07,176.03,3.21]
[1752912983852,2.2265375,176.08,176.07,8.8859]
[1752912984054,5.5565375,176.11,176.07,3.21]
[1752912984444,3.33,176.11,176.09,5.675]
[1752912984653,2.2265375,176.15,176.1,3.21]
[1752912984854,3.33,176.14,176.1,3.21]
[1752912985053,3.33,176.13,176.1,3.21]
[1752912985252,3.33,176.13,176.07,3.21]
[1752912985854,3.33,176.13,176.11,5.6743]
[1752912986059,3.33,176.13,176.07,3.21]
[1752912986555,2.2265375,176.15,176.13,8.8839]
[1752912986755,3.33,176.14,176.13,8.8839]
[1752912987659,5.5565375,176.15,176.14,3.21]
[1752912987855,3.3719901,176.15,176.14,8.8837]
[1752912988058,0.0419901,176.15,176.14,8.8837]
[1752912988951,3.3719901,176.15,176.12,0.0396316]
[1752912989151,3.33,176.13,176.12,3.2496316]
[1752912990659,3.33,176.13,176.12,0.0396316]
[1752912991462,3.33,176.13,176.12,3.2496316]
[1752912992058,0.0419901,176.15,176.13,3.21]
[1752912992659,0.0419901,176.15,176.14,8.8837]
[1752912993062,0.0419901,176.15,176.14,5.6737]
[1752912993357,0.0419901,176.15,176.12,0.0396316]
[1752912993358,3.33,176.14,176.12,0.0396316]
[1752912993963,2.2265375,176.13,176.12,0.0396316]
[1752912994163,11.2306375,176.13,176.12,0.0396316]
[1752912994366,3.33,176.12,176.06,3.21]
[1752912994663,5.5565375,176.11,176.08,5.6754]
[1752912994866,5.5565375,176.11,176.09,3.21]
[1752912995055,5.5565375,176.11,176.1,3.18]
[1752912995563,0.03765247,176.12,176.1,3.18]
[1752912995956,2.2265375,176.13,176.11,3.18]
[1752912996357,3.09,176.12,176.11,3.18]
[1752912996970,3.09,176.12,176.07,3.18]
[1752912997167,3.09,176.12,176.08,3.18]
[1752912997468,3.09,176.12,176.09,8.8553]
[1752912997769,3.12815458,176.12,176.09,8.8553]
[1752912997969,3.6410302,176.11,176.09,5.6753]
[1752912998270,3.09,176.1,176.09,5.6753]
[1752912998466,3.09,176.1,176.07,3.18]
[1752912998666,3.09,176.08,176.07,3.18]
[1752912998967,3.09,176.08,176.05,8.8566]
[1752912999669,3.13057647,176.08,176.05,8.8566]
[1752913000770,3.09,176.06,176.03,3.18]
[1752913001370,3.6410302,176.07,176.04,5.6769]
[1752913001567,3.09,176.05,176.04,5.6769]
[1752913002873,3.09,176.05,176.04,8.8569]
[1752913007978,0.04116459,176.06,176.05,8.8566]
[1752913008377,3.09,176.06,176.05,8.8566]
[1752913008977,3.09,176.06,176.05,3.18]
[1752913010275,3.13119871,176.07,176.06,3.18]
[1752913010778,3.6410302,176.08,176.07,3.18]
[1752913010973,3.68033347,176.08,176.07,3.18]
[1752913011169,6.77033347,176.08,176.07,3.18]
[1752913011575,6.77033347,176.08,175.99,4.75545335]
[1752913011775,3.09,176.07,176.0,3.18]
[1752913011976,3.09,176.05,176.0,3.18]
[1752913012183,3.09,176.04,176.0,3.18]
[1752913012485,6.7310302,176.06,176.0,3.18]
[1752913012778,0.04306967,176.04,176.0,3.18]
[1752913012983,0.04306967,176.04,176.03,5.677]
[1752913013179,0.04306967,176.04,176.03,8.857]
[1752913013386,0.04306967,176.04,175.97,4.7588395]
[1752913013387,3.09,176.03,175.98,3.18]
[1752913013574,3.09,176.0,175.99,3.18]
[1752913014079,5.6764,176.06,176.0,8.858]
[1752913014283,6.7310302,176.03,176.02,3.18]
[1752913014483,3.09,176.02,175.95,3.18]
[1752913015077,3.09,176.01,175.92,8.3998697]
[1752913015384,0.04184767,176.0,175.92,8.3998697]
[1752913015785,0.04184767,176.0,175.93,3.18]
[1752913016584,0.04184767,176.0,175.98,5.6788]
[1752913016879,3.13184767,176.0,175.98,8.8588]
[1752913017181,3.09,175.99,175.98,8.8588]
[1752913017777,3.09,175.99,175.97,5.679]
[1752913018076,3.09,175.98,175.92,3.18]
[1752913018278,3.09,175.98,175.95,5.6797]
[1752913018472,3.09,175.97,175.96,3.18]
[1752913019077,5.32806198,175.97,175.95,5.6797]
[1752913019277,5.32806198,175.97,175.95,8.8597]
[1752913019278,3.09,175.96,175.95,8.8597]
[1752913020178,2.23806198,175.97,175.96,5.6794]
[1752913020379,2.23806198,175.99,175.96,3.18]
[1752913020582,3.09,175.99,175.94,2.23806198]
[1752913020780,0.04184767,176.0,175.99,8.8585]
[1752913020781,4.767e-05,176.0,175.99,8.8585]
[1752913021280,5.32806198,176.07,175.99,3.18]
[1752913021681,2.23806198,176.07,175.99,3.18]
[1752913021882,3.09,176.06,175.99,3.18]
[1752913022184,3.09,176.06,176.05,5.6765]
[1752913022382,3.09,176.06,176.01,3.18]
[1752913022682,2.23806198,176.03,176.02,5.6773]
[1752913023185,3.09,176.03,176.02,5.6773]
[1752913023484,5.676,176.07,176.03,5.6772]
[1752913023685,3.64490913,176.05,176.0,3.18]
[1752913023879,3.64490913,176.05,175.94,3.64490913]
[1752913024186,3.09,176.04,176.01,3.18]
[1752913024484,3.64490913,176.05,176.02,3.18]
[1752913024682,3.09,176.03,176.02,8.8575]
[1752913024881,3.09,176.03,175.99,3.18]
[1752913025284,3.09,176.03,176.0,5.6781]
[1752913025583,3.64490913,176.01,175.95,3.35]
[1752913025883,3.09,175.98,175.96,3.35]
[1752913026182,3.09,175.97,175.96,3.35]
[1752913027287,3.09,175.96,175.95,9.0297]
[1752913027675,3.09,175.95,175.93,3.35]
[1752913028383,3.09,175.95,175.93,9.0301]
[1752913028585,3.64490913,175.97,175.93,9.0301]
[1752913028781,3.09,175.93,175.87,110.24]
[1752913028982,3.09,175.92,175.88,3.35]
[1752913029380,3.09,175.92,175.84,3.35]